Cogmind - Beta 15 @@@ ROGUE MODE // 2025.06.29 @ 19:19:43 Player: LameThyst Result: Destroyed by H-61 Shepherd with Heavy Assault Cannon Performance ------------- Evolutions (2) 1000 Regions Visited (5) 1000 Robots Destroyed (29) 145 Value Destroyed (966) 966 Prototype IDs (1) 20 Alien Tech Used (0) 0 Bonus (0) 0 TOTAL SCORE: 3131 Bonus ------- None Cogmind --------- Core Integrity 0/550 Matter 267/300 Energy 160/160 System Corruption 4% Temperature Cool (0) Movement Walking (120) Location -8/Materials Parts ------- > --- POWER (1) -------- Light Nuclear Core > --- PROPULSION (4) --- Light Treads Aluminum Leg Aluminum Leg > --- UTILITY (3) ------ Improved Heat Sink Improved Cooling System Small Storage Unit > --- WEAPON (3) ------- Beam Rifle Minigun > --- INVENTORY (8) ---- Light Nuclear Core Disposable Heat Sink High-capacity Storage Unit Medium Matter Pod (88) Lightning Gun Particle Gun Plasma Cannon Katana Peak State ------------ > --- POWER ------------ Light Nuclear Core > --- PROPULSION ------- Light Treads Aluminum Leg Aluminum Leg > --- UTILITY ---------- Improved Heat Sink Improved Cooling System Small Storage Unit > --- WEAPON ----------- Beam Rifle Particle Gun Minigun > --- INVENTORY -------- Light Nuclear Core Disposable Heat Sink High-capacity Storage Unit Medium Matter Pod Lightning Gun Plasma Cannon Mini Grenade Launcher Katana [Rating: 23] Favorites ----------- Power Light Nuclear Core Engine Ion Engine Power Core Light Nuclear Core Propulsion Aluminum Leg Treads Light Treads Leg Aluminum Leg Utility Small Storage Unit Device Heat Sink Storage Small Storage Unit Weapon Light Assault Rifle Energy Gun Beam Rifle Ballistic Gun Light Assault Rifle Ballistic Cannon Light Cannon Launcher Mini Grenade Launcher Build | -11 -10 -10 -9 -9 -8 ------- Run | Yrd Mat Min Mat Min Mat Slots Evolved 4 | . . . 2 . 2 Power . | . . . . . . Propulsion 2 | . . . 2 . . Utility 1 | . . . . . 1 Weapon 1 | . . . . . 1 Parts Attached 41 | 7 11 2 6 . 15 Power 6 | 1 1 . 1 . 3 Engine 3 | 1 . . 1 . 1 Core 3 | . 1 . . . 2 Reactor . | . . . . . . Propulsion 13 | 2 5 1 2 . 3 Treads 1 | . . . . . 1 Leg 12 | 2 5 1 2 . 2 Wheel . | . . . . . . Hover . | . . . . . . Flight . | . . . . . . Utility 7 | 1 2 . . . 4 Device 6 | . 2 . . . 4 Storage 1 | 1 . . . . . Processor . | . . . . . . Hackware . | . . . . . . Protection . | . . . . . . Artifact . | . . . . . . Weapon 15 | 3 3 1 3 . 5 Energy Gun 8 | 2 2 . 1 . 3 Energy Cannon . | . . . . . . Ballistic Gun 5 | 1 . 1 2 . 1 Ballistic Cannon 1 | . 1 . . . . Launcher 1 | . . . . . 1 Special Weapon . | . . . . . . Impact Weapon . | . . . . . . Slashing Weapon . | . . . . . . Piercing Weapon . | . . . . . . Special Melee Weapon . | . . . . . . Unidentified Prototypes 1 | . . . 1 . . Parts Lost 16 | . 1 . 2 3 10 Power 2 | . . . 1 1 . Propulsion 5 | . . . 1 1 3 Utility 2 | . 1 . . . 1 Weapon 7 | . . . . 1 6 Highest Loss Streak 7 | . 1 . 1 3 7 To Critical Strikes . | . . . . . . Average Backups 6 | 2 6 8 6 7 7 Power . | . 1 1 . . . Propulsion . | 1 2 2 . . . Utility 2 | . . 1 1 3 3 Weapon 2 | . 1 3 4 4 2 Tool/Special . | . . . . . . Unused Backups 13 | . 4 1 . . 8 Power 2 | . 1 . . . 1 Propulsion 3 | . 3 . . . . Utility 3 | . . . . . 3 Weapon 5 | . . 1 . . 4 Tool/Special . | . . . . . . Average Slot Usage (%) 85 | . 89 100 97 86 74 Engine 4 | . 4 . 8 4 2 Core 5 | . 9 14 1 . 4 Treads 1 | . . . . . 4 Leg 27 | . 28 28 42 37 15 Device 10 | . 4 14 11 11 13 Storage 11 | . 14 14 11 11 9 Energy Gun 11 | . 14 8 3 8 15 Ballistic Gun 9 | . 11 6 7 8 9 Ballistic Cannon 3 | . 2 14 11 4 . Peak Build Rating 23 | 6 11 9 11 10 23 Average Rating 11 | 4 8 9 9 8 17 On Entrance 7 | . 6 9 9 10 8 Naked Turns . | . . . . . . Heaviest Build 26 | 14 16 16 17 17 26 Greatest Support 40 | 20 20 20 40 30 20 Greatest Overweight (x) 6 | . . . . . 6 Average Overweight (x) . | . . . . . . Largest Inventory Capacity 8 | 8 8 8 8 8 8 Average Capacity 7 | 6 8 8 8 8 8 Most Carried 8 | 4 8 8 8 8 8 Average Carried 6 | 2 6 7 6 7 7 Final Capacity 8 | 8 8 8 8 8 8 Final Carried 8 | 4 8 8 8 8 8 Class Distribution -------------------- 37% | Scavenger-Mutant 37% | Mutant 17% | Scavenger-Gunner 6% | Gunner Dominant Class ---------------- Mutant | -10/Materials Scavenger-Mutant | -10/Mines Scavenger-Mutant | -9/Materials Scavenger-Mutant | -9/Mines Scavenger-Gunner | -8/Materials Resources | -11 -10 -10 -9 -9 -8 ----------- Run | Yrd Mat Min Mat Min Mat Matter Collected 1111 | 213 246 30 141 106 375 Remotely . | . . . . . . Salvage Created 920 | . 354 21 133 . 412 Parts 60 | . 26 8 7 . 19 Haulers Intercepted . | . . . . . . Recyclers Shooed 1 | . 1 . . . . Parts Field Recycled . | . . . . . . Retrieved Matter . | . . . . . . Parts Self-Destructed . | . . . . . . Prevented . | . . . . . . Kills | -11 -10 -10 -9 -9 -8 ------- Run | Yrd Mat Min Mat Min Mat Combat Hostiles Destroyed 27 | . 9 3 7 1 7 Guns 20 | . 7 1 4 1 7 Cannons 7 | . 2 2 3 . . Classes Destroyed 6 | . 1 1 1 1 2 Recycler 1 | . . . . . 1 Watcher 1 | . . . 1 . . Swarmer 6 | . . 3 3 . . Grunt 19 | . 9 . 4 . 6 Sentry 1 | . . . . . 1 Demolisher 1 | . . . . 1 . Best Kill Streak 5 | . 2 3 5 1 2 Combat Bots Only 5 | . 2 3 5 1 2 Max Kills in Single Turn 1 | . 1 1 1 1 1 Gunslinging . | . . . . . . Exploded . | . . . . . . Melee . | . . . . . . Uniques/NPCs Destroyed . | . . . . . . Combat | -11 -10 -10 -9 -9 -8 -------- Run | Yrd Mat Min Mat Min Mat Hostile Shots Fired 195 | . 40 16 54 6 79 Missed 50 | . 10 6 14 . 20 Hits 145 | . 30 10 40 6 59 Projectile 145 | . 30 10 40 6 59 AOE 8 | . . . . 6 2 Critical Strikes 5 | . . . 2 . 3 Damage Taken 2454 | . 398 76 486 251 1243 Core 771 | . 41 8 80 64 578 Absorbed by Shields . | . . . . . . Core Remaining (%) 81 | 100 . 80 . 64 . Volleys Fired 104 | . 28 5 34 3 34 Largest 3 | . 2 2 2 2 3 Hottest 186 | . 80 80 86 76 186 Shots Fired 209 | . 56 10 68 5 70 Gun 164 | . 50 5 34 5 70 Cannon 45 | . 6 5 34 . . Launcher . | . . . . . . Special . | . . . . . . Kinetic 127 | . 28 5 64 2 28 Thermal 68 | . 14 5 4 3 42 Explosive . | . . . . . . Electromagnetic 14 | . 14 . . . . Robot Hit Streak 14 | . 10 3 7 4 14 Robot Miss Streak 4 | . 2 2 3 4 4 Penetration Max . | . . . . . . Secondary Targets 3 | . . . . . 3 Max Gunslinging Chain 1 | . . . . . 1 Shots Hit Robots 141 | . 43 6 43 4 45 Core Hits 60 | . 19 3 15 2 21 Critical Kills 1 | . 1 . . . . Critical Parts Destroyed . | . . . . . . Critical Strikes 3 | . 1 1 . . 1 Burn 1 | . . . . . 1 Destroy 1 | . 1 . . . . Blast 1 | . . 1 . . . Melee Attacks . | . . . . . . Impact . | . . . . . . Slashing . | . . . . . . Piercing . | . . . . . . Sneak Attacks . | . . . . . . Combat Hostiles . | . . . . . . Follow-up Attacks . | . . . . . . Damage Inflicted 2031 | . 599 108 565 46 713 Guns 1502 | . 510 39 194 46 713 Cannons 529 | . 89 69 371 . . Explosions . | . . . . . . Melee . | . . . . . . Ramming . | . . . . . . Kinetic 1119 | . 301 69 535 18 196 Thermal 778 | . 164 39 30 28 517 Explosive . | . . . . . . Electromagnetic 134 | . 134 . . . . Impact . | . . . . . . Slashing . | . . . . . . Piercing . | . . . . . . Highest Corruption 4 | . . . . . 4 Average Corruption 3 | . . . . . 3 Corruption Purged . | . . . . . . Corruption Blocked . | . . . . . . Effects 6 | . . . . . 6 Message Errors 1 | . . . . . 1 Heat Flow Errors 3 | . . . . . 3 Data Loss (minor) 2 | . . . . . 2 Overload Shots . | . . . . . . Overflow Damage . | . . . . . . Projectiles . | . . . . . . Explosions . | . . . . . . Melee . | . . . . . . Knockbacks 11 | . 2 1 8 . . Impact . | . . . . . . Kinetic 10 | . 2 1 7 . . Secondary 1 | . . . 1 . . Self-Inflicted Damage . | . . . . . . Shots . | . . . . . . Rammed . | . . . . . . Targets Rammed . | . . . . . . Kicked . | . . . . . . Crushed . | . . . . . . Highest Temperature 612 | . 156 . 14 . 612 Average Temperature 142 | . 62 . 3 . 189 Received Heat Transfer 996 | . 222 . 282 . 492 Effects 14 | . . . . . 14 Shutdowns 2 | . . . . . 2 Interference 7 | . . . . . 7 Matter Decay 1 | . . . . . 1 Short Circuit 1 | . . . . . 1 Damage (minor) 2 | . . . . . 2 Damage (core) 1 | . . . . . 1 Siege Activations . | . . . . . . Martial Activations . | . . . . . . Shielding Activations . | . . . . . . Robots Disrupted . | . . . . . . Combat Hostiles . | . . . . . . Robots Corrupted . | . . . . . . Combat Hostiles . | . . . . . . Parts Fried . | . . . . . . Impact Corruptions . | . . . . . . Robots Melted . | . . . . . . Combat Hostiles . | . . . . . . Parts Melted 3 | . . . . . 3 Heat Transferred 2080 | . 481 111 74 74 1340 Parts Sabotaged . | . . . . . . Parts Stolen . | . . . . . . Parts Stripped . | . . . . . . Power Chain Reactions . | . . . . . . Alert | -11 -10 -10 -9 -9 -8 ------- Run | Yrd Mat Min Mat Min Mat Maximum Alert Level . | . . . . . . Low Security (%) 100 | 100 100 100 100 100 100 Level 1 . | . . . . . . Level 2 . | . . . . . . Level 3 . | . . . . . . Level 4 . | . . . . . . Level 5 . | . . . . . . High Security . | . . . . . . Max Security . | . . . . . . Peak Influence 126 | . 105 103 126 24 37 Initial 33 | . . 33 27 24 . Average 32 | . 37 81 88 5 8 Influence Increases 715 | . 255 70 193 20 177 Destroy 0b10 Robot/C 540 | . 180 60 140 20 140 Destroy 0b10 Robot/NC 10 | . . . 5 . 5 Destroy Leader 122 | . 50 10 32 . 30 Successful Hack 10 | . 10 . . . . Disable Machine 15 | . . . 15 . . Destroy Structure 3 | . . . 1 . 2 Lose Combat Pursuer 15 | . 15 . . . . Influence Decreases 715 | . 170 82 203 83 177 Entered New Map 137 | . . 52 46 39 . Time Decay 498 | . 160 30 137 44 127 Lost Part 80 | . 10 . 20 . 50 Squads Dispatched 7 | . 3 . 1 . 3 Investigation 1 | . 1 . . . . Extermination . | . . . . . . Reinforcement 6 | . 2 . 1 . 3 Assault . | . . . . . . Garrison . | . . . . . . Intercept . | . . . . . . Searches Triggered . | . . . . . . Construction Impeded 1 | . . . . . 1 Haulers Reinforced . | . . . . . . Active Scanning Responses . | . . . . . . Cargo Convoy Interrupts . | . . . . . . Stealth | -11 -10 -10 -9 -9 -8 --------- Run | Yrd Mat Min Mat Min Mat Distress Signals 7 | . 2 . 2 1 2 Communications Jammed . | . . . . . . Distress Signals . | . . . . . . Times Spotted 44 | . 14 3 13 2 12 Peak Tracking Total 5 | . 4 3 4 5 3 Tactical Retreats 1 | . 1 . . . . Traps | -11 -10 -10 -9 -9 -8 ------- Run | Yrd Mat Min Mat Min Mat Traps Triggered 3 | . 1 . . . 2 Indirectly . | . . . . . . Trap Hack Attempts . | . . . . . . Triggered . | . . . . . . Disarmed . | . . . . . . Reprogrammed . | . . . . . . Reused . | . . . . . . Traps Extracted . | . . . . . . Installed . | . . . . . . Triggered . | . . . . . . Machines | -11 -10 -10 -9 -9 -8 ---------- Run | Yrd Mat Min Mat Min Mat Machines Disabled 1 | . . . 1 . . Max in Single Turn 1 | . . . 1 . . Machines Repaired . | . . . . . . Machines Dismantled . | . . . . . . Machines Sabotaged . | . . . . . . Overloaded Fab Kills . | . . . . . . Hacking | -11 -10 -10 -9 -9 -8 --------- Run | Yrd Mat Min Mat Min Mat Machines Accessed 1 | . 1 . . . . Terminals 1 | . 1 . . . . Fabricators . | . . . . . . Repair Stations . | . . . . . . Recycling Units . | . . . . . . Scanalyzers . | . . . . . . Garrison Access . | . . . . . . Total Hacks 4 | . 4 . . . . Successful 4 | . 4 . . . . Failed . | . . . . . . Catastrophic . | . . . . . . Database Lockouts . | . . . . . . Manual . | . . . . . . Terminals 4 | . 4 . . . . Fabricators . | . . . . . . Repair Stations . | . . . . . . Recycling Units . | . . . . . . Scanalyzers . | . . . . . . Garrison Access . | . . . . . . Terminal Hacks 4 | . 4 . . . . Maintenance Status 1 | . 1 . . . . Hauler Manifests 1 | . 1 . . . . Registered Components 1 | . 1 . . . . Zone Layout 1 | . 1 . . . . Fabricator Hacks . | . . . . . . Repair Station Hacks . | . . . . . . Recycling Unit Hacks . | . . . . . . Scanalyzer . | . . . . . . Garrison Access Hacks . | . . . . . . Unauthorized Hacks . | . . . . . . Terminals . | . . . . . . Fabricators . | . . . . . . Repair Stations . | . . . . . . Recycling Units . | . . . . . . Scanalyzers . | . . . . . . Garrison Access . | . . . . . . Data Cores Recovered . | . . . . . . Used . | . . . . . . Hacking Detections . | . . . . . . Full Trace Events . | . . . . . . Feedback Events . | . . . . . . Feedback Blocked . | . . . . . . Robot Schematics Acquired . | . . . . . . Robots Built . | . . . . . . Authchips . | . . . . . . Time . | . . . . . . Total Robot Build Rating . | . . . . . . Part Schematics Acquired . | . . . . . . Parts Built . | . . . . . . Authchips . | . . . . . . Time . | . . . . . . Total Part Build Rating . | . . . . . . Parts Repaired . | . . . . . . Time . | . . . . . . Parts Recycled . | . . . . . . Recycled Matter . | . . . . . . Retrieved Matter . | . . . . . . Retrieved Components . | . . . . . . Parts Scanalyzed . | . . . . . . Part Schematics Acquired . | . . . . . . Parts Damaged . | . . . . . . Bothacking | -11 -10 -10 -9 -9 -8 ------------ Run | Yrd Mat Min Mat Min Mat Used RIF Installer . | . . . . . . Robots Hacked . | . . . . . . Non-combat . | . . . . . . Combat . | . . . . . . Robot Hacks Applied . | . . . . . . Relay Couplers Released . | . . . . . . Fabnet Peak Effective % . | . . . . . . Robots Rewired . | . . . . . . Allies Hacked . | . . . . . . Hacks Repelled . | . . . . . . Allies | -11 -10 -10 -9 -9 -8 -------- Run | Yrd Mat Min Mat Min Mat Total Allies . | . . . . . . Largest Group . | . . . . . . Highest-Rated Group . | . . . . . . Highest-Rated Ally . | . . . . . . Total Orders . | . . . . . . Ally Attacks . | . . . . . . Total Damage . | . . . . . . Kills . | . . . . . . Allies Corrupted . | . . . . . . Allies Melted . | . . . . . . Intel | -11 -10 -10 -9 -9 -8 ------- Run | Yrd Mat Min Mat Min Mat Active Infowar (turns) 3 | . . . . . 3 Terrain 2 | . . . . . 2 Seismic 1 | . . . . . 1 Robot Analysis Total . | . . . . . . Derelict Logs Recovered . | . . . . . . Drone Launches . | . . . . . . Drone Recoveries . | . . . . . . Exploration | -11 -10 -10 -9 -9 -8 ------------- Run | Yrd Mat Min Mat Min Mat Turns Passed 1590 | 75 393 67 283 193 579 Spaces Moved 817 | 52 208 39 139 138 241 Core 9 | 2 . . . . 7 Treads 17 | . . . . . 17 Legs 791 | 50 208 39 139 138 217 Wheels . | . . . . . . Hover . | . . . . . . Flight . | . . . . . . Fastest Speed 50 | 50 120 120 120 120 120 Average Speed 138 | 117 120 120 120 120 182 Slowest Speed 350 | 120 120 120 120 120 350 Overloaded Moves . | . . . . . . Propulsion Burnouts . | . . . . . . Robots Hopped . | . . . . . . Potential Cave-ins . | . . . . . . Cave-ins Triggered . | . . . . . . Exploration Rate (%) 22 | 4 44 11 15 44 18 Regions Visited 5 Branch Regions 2 Pre-discovered Areas . | . . . . . . Known Exits Taken . | . . . . . . Unknown Exits Taken 5 | 1 1 1 1 1 . Scrap Searched 1 | . . . . 1 . Spaces Dug . | . . . . . . Terrain Destroyed . | . . . . . . Melee . | . . . . . . Projectile . | . . . . . . AOE . | . . . . . . Terrain Rammed . | . . . . . . Walls Destroyed . | . . . . . . Machines Disabled . | . . . . . . Actions | -11 -10 -10 -9 -9 -8 --------- Run | Yrd Mat Min Mat Min Mat Total 1085 | 62 297 51 191 160 324 Wait 56 | . 30 . 3 17 6 Move 812 | 51 207 38 138 137 241 Hop . | . . . . . . Pick Up 34 | 4 11 3 4 1 11 Fast Attach 13 | 6 1 . . . 6 Attach 16 | . 1 . 5 1 9 Detach 3 | . . . 1 . 2 Swap 24 | 1 9 2 5 1 6 Drop 23 | . 10 3 1 . 9 Fire 104 | . 28 5 34 3 34 Melee . | . . . . . . Ram . | . . . . . . Kick . | . . . . . . Crush . | . . . . . . Escape Stasis . | . . . . . . Rewire . | . . . . . . Trap . | . . . . . . Miscellaneous . | . . . . . . Route ------- -11/Scrapyard -10/Materials -10/Mines -9/Materials -9/Mines -8/Materials History --------- Turn | Location | Event 2 | -11/Scrapyard | Met Revision 17 18 | -11/Scrapyard | Discovered new exit (range 16) 76 | -11/Scrapyard | Entered Materials 335 | -10/Materials | Build established: Mutant 449 | -10/Materials | Discovered new exit (range 14) 469 | -10/Materials | Entered Mines 525 | -10/Mines | Discovered new exit (range 8) 536 | -10/Mines | Entered Materials 536 | -9/Materials | Evolved 2 slots: Propulsion x2 733 | -9/Materials | Build established: Scavenger-Mutant 809 | -9/Materials | Discovered new exit (range 5) 819 | -9/Materials | Entered Mines 867 | -9/Mines | Assembled infested the area 937 | -9/Mines | Lost 3 parts (1p1n1w) 998 | -9/Mines | Discovered new exit (range 13) 1012 | -9/Mines | Entered Materials 1012 | -8/Materials | Evolved 2 slots: Utility x1, Weapon x1 1157 | -8/Materials | Core integrity fell below 50% 1183 | -8/Materials | Core integrity fell below 20% 1207 | -8/Materials | Lost 7 parts (3n1u3w) 1591 | -8/Materials | Destroyed by H-61 Shepherd with Heavy Assault Cannon Last Messages --------------- 01459_ System corrupted (+2). 01467_ System corrupted: Component data lost. 01476_ Dropped Seismic Detector. 01477_ Acquired Plasma Cannon. 01480_ Dropped Particle Gun. 01480_ Acquired Lightning Gun. 01482_ System corrupted: Heat flow error (+120). 01487_ K-01 Serf collects debris. 01502_ System corrupted: Heat flow error (+126). 01504_ K-01 Serf collects debris. 01518_ AA4A:U|PTATT5/BXH8TQUI 01539_ System corrupted: Component data lost. 01559_ System corrupted: Heat flow error (+119). 01572_ W-25 Informer sends out distress signal. 01586_ Penetrated by Slug. 01586_ Mni. Grenade Launcher destroyed. 01586_ Knocked back. 01591_ H-61 Shepherd calls for reinforcements. 01591_ ALERT: Hostile activity reported, dispatching reinforcements to area. Map ----- +----------------------------------------------------+ | ?????????????????????????????????????????????????? | | ?????????????????????????????????????????????????? | | ?????????????????????????????????????????????????? | | ?????????????????????????????????????????????????? | | ???????????????????????????????????????######????? | | ?????????????????????????????########### ###### | | ?????????????????#???????????# # ^ | | ?????????????????# ??????????# # | | ?????????????????# ?????????# # * ###### | | ?????????????????? ###+##### ## ##????# | | ???????????????????? ## ##* #?????# | | ????????????????????? ## ## #?????# | | ??????????????????????? ## ! ## #?????# | | ????????????????????????# ## ## ##????? | | ????????????????????????#H #########+## #????? | | ????????????????????????# ! #????? | | ????????????????????????# = ! #????? | | ????????????????????????# #########+## #????? | | ????????????????????????# ## ![######????? | | ????????????????????????# ## = #?????????? | | ????????????????????????# ## #?????????? | | ????????????????????????# ## !! #?????????? | | ????????????????????????# ## /!! #?????????? | | ????????????????????????# ## /! #?????????? | | ????????????????????????# ## #?????????? | | ????????????????????????#@ #############????????? | | ????????????????????????# w ## ##????????? | | ????????????????????????# %#" ###???????? | | ????????????????????????# #" # #???????? | | ????????????????????????# #" " #???????? | | ????????????????????????# #" " #????#### | | ????????????????????????# #" " #????# | | ????????????????????????# k## # #????#""" | | ????????????????????????# # ! [ "##????#""" | | ????????????????????????# #####+###+#"#?????#""" | | ????????????????????????# % #####???# | | ????????????????????????# [[#???#""" | | ????????????????????????# [#???#""" | | ????????????????????????# ##### ### ||#???#""" | | ????????????????????????# #???# #?# ||#???# | | ??????????????????????? ????# #?# !!#???#### | | ??????????????????????### ?????+#?# !#?????# | | ????????????????????????# ?????????# ########### | | ????????????????????????# ?????????# #??# # | | ????????????????????????# ?????????# #### """"# | | ????????????????????????????????????# + """!# | | ????????????????????????????????????# #### """/## | | ????????????????????????????????????# #??# ## | | ????????????????????????????????????# #??# ! ## | | ????????????????????????????????????# ########+### | +----------------------------------------------------+ Best States ------------- Heat Dissipation 72 Energy Generation 14 Energy Capacity 275 Matter Stores 300 Matter Capacity 300 Sight Range 16 Terrain Scan Range 16 Terrain Scan Density 10 Evasion (%) 55 Recoil Reduction 1 Item Schematics ----------------- None Robot Schematics ------------------ None Fabricated ------------ Nothing Repaired ---------- Nothing Alien Tech Used ----------------- None Achievements -------------- None Challenges ------------ None Game ------ Seed CoolingImpulseLink Manual? 0 Play Time 00:20:47 Cumulative 36.2 hours Start 2025.06.29 @ 18:58:53 End 2025.06.29 @ 19:19:43 Sessions 1 Manual Loads 0 Difficulty Rogue Special Mode None Game No. 41 Rogue 41 Adventurer 0 Explorer 0 Win Type - Total 0 Types 0/0/0/0/0/0/0/0/0/0 Lore% 15 Gallery% 29 Achievement% 23 Wizard Run 0 Options --------- Layout 1 ASCII 0 Keyboard 0 Movement Mouse Keybinds 0 Fullscreen 2 Font 48/Smallcaps Map View 50x35 Zoom Use 0% Tactical HUD 1 Map Filters NONE Filters NONE Steam 0 RUN: a171f018-6b29-45b3-a6f0-4b3d905330d4